Cogmind - Beta 12 @@@ ROGUE MODE // 2023.05.21 @ 01:06:40 Player: Mr Goldstein Result: Destroyed by B-75 Beast with Magnetic Acceleration Cannon Performance ------------- Evolutions (5) 2500 Regions Visited (12) 2400 Robots Destroyed (28) 140 Value Destroyed (933) 933 Prototype IDs (16) 320 Alien Tech Used (0) 0 Bonus (1289) 1289 TOTAL SCORE: 7582 Bonus ------- Pacifist 834 Follower Combat Kills 155 Met Data Miner 300 Cogmind --------- Core Integrity 0/1000 Matter 266/300 Energy 99/100 System Corruption 1% Temperature Cool (0) Movement Core (50) Location -5/Extension Parts ------- > --- POWER (1) -------- (None) > --- PROPULSION (6) --- (None) > --- UTILITY (8) ------ Propulsion Shielding Hacking Suite > --- WEAPON (2) ------- (None) > --- INVENTORY (5) ---- Micro Nuclear Core Hardened Light Armor Plating Remote Datajack Peak State ------------ > --- POWER ------------ Micro Nuclear Core > --- PROPULSION ------- Nuclear Pulse Thruster Biomechanical Wings > --- UTILITY ---------- Melee Analysis Suite Core Analyzer Improved Propulsion Shielding Improved Medium Armor Plating Hacking Suite > --- WEAPON ----------- (None) > --- INVENTORY -------- Hardened Light Armor Plating Improved Grenade Launcher Remote Datajack [Rating: 32] Favorites ----------- Power Backup Power III Engine Backup Power III Power Core Light Nuclear Core Propulsion VTOL Module Leg Aluminum Leg Hover Unit Gravmag System Flight Unit VTOL Module Utility Hacking Suite Device Improved Sensor Array Processor Core Analyzer Hackware Hacking Suite Protection Backup Plating III Weapon Backup Laser III Energy Gun Backup Laser III Launcher Improved Grenade Launcher Special Weapon Remote Datajack Build | -11 -10 -9 -9 -8 -7 -7 -7 -7 -6 -6 -5 -5 ------- Run | Jun Mat Mat Min Mat Fac Low Low Dat Pro Fac Fac Ext Slots Evolved 10 | . . 2 . 2 2 . . . . 2 2 . Power . | . . . . . . . . . . . . . Propulsion 4 | . . 2 . 2 . . . . . . . . Utility 6 | . . . . . 2 . . . . 2 2 . Weapon . | . . . . . . . . . . . . . Parts Attached 40 | . . . . 1 19 2 7 1 3 . 5 2 Power 5 | . . . . . 4 . . . . . 1 . Engine 2 | . . . . . 2 . . . . . . . Core 3 | . . . . . 2 . . . . . 1 . Reactor . | . . . . . . . . . . . . . Propulsion 12 | . . . . 1 7 . 2 . 1 . 1 . Treads . | . . . . . . . . . . . . . Leg 1 | . . . . . . . 1 . . . . . Wheel . | . . . . . . . . . . . . . Hover 1 | . . . . . . . 1 . . . . . Flight 10 | . . . . 1 7 . . . 1 . 1 . Utility 13 | . . . . . 7 1 2 . . . 2 1 Device 2 | . . . . . 2 . . . . . . . Storage . | . . . . . . . . . . . . . Processor 2 | . . . . . . 1 1 . . . . . Hackware 1 | . . . . . 1 . . . . . . . Protection 8 | . . . . . 4 . 1 . . . 2 1 Artifact . | . . . . . . . . . . . . . Weapon 10 | . . . . . 1 1 3 1 2 . 1 1 Energy Gun . | . . . . . . . . . . . . . Energy Cannon . | . . . . . . . . . . . . . Ballistic Gun . | . . . . . . . . . . . . . Ballistic Cannon . | . . . . . . . . . . . . . Launcher 8 | . . . . . 1 . 3 . 2 . 1 1 Special Weapon 2 | . . . . . . 1 . 1 . . . . Impact Weapon . | . . . . . . . . . . . . . Slashing Weapon . | . . . . . . . . . . . . . Piercing Weapon . | . . . . . . . . . . . . . Special Melee Weapon . | . . . . . . . . . . . . . Unidentified Prototypes 2 | . . . . . 1 . . . . . 1 . Parts Lost 17 | . . . . . 4 1 5 . . . 3 4 Power 2 | . . . . . 1 1 . . . . . . Propulsion 8 | . . . . . 3 . 3 . . . 1 1 Utility 5 | . . . . . . . 1 . . . 2 2 Weapon 2 | . . . . . . . 1 . . . . 1 Highest Loss Streak 5 | . . . . . 3 1 5 . . . 3 3 To Critical Strikes . | . . . . . . . . . . . . . Average Slot Usage (%) 33 | . . . . . 48 45 31 47 43 33 36 17 Engine 1 | . . . . . 4 . . . . . . . Leg 1 | . . . . . . . 5 7 4 . . . Hover 1 | . . . . . . . 5 7 4 . . . Flight 9 | . . . . . 20 23 1 . 2 6 10 1 Processor 5 | . . . . . . 1 8 15 15 13 11 6 Hackware 3 | . . . . . . 7 7 7 7 6 5 5 Protection 6 | . . . . . 11 7 1 7 7 6 7 2 Energy Gun 2 | . . . . . 9 . . . . . . . Naked Turns 192 | . 39 37 26 90 . . . . . . . . Heaviest Build 11 | . . . . . 11 7 2 5 2 2 9 1 Greatest Support 16 | 3 3 3 3 4 16 12 12 3 6 6 12 6 Greatest Overweight (x) 1 | . . . . . . . . 1 . . . . Average Overweight (x) . | . . . . . . . . . . . . . Largest Inventory Capacity 5 | 5 5 5 5 5 5 5 5 5 5 5 5 5 Average Capacity 5 | 5 5 5 5 5 5 5 5 5 5 5 5 5 Most Carried 5 | . . . . 5 5 5 5 4 4 4 5 5 Average Carried 3 | . . . . 1 4 4 3 3 3 4 4 3 Final Capacity 5 | 5 5 5 5 5 5 5 5 5 5 5 5 5 Final Carried 5 | . . . . 5 5 5 4 4 4 4 5 3 Class Distribution -------------------- 38% | Mutant 28% | Derelict-Mutant 28% | Sprinter 3% | Scavenger-Sprinter Dominant Class ---------------- Mutant | -10/Materials Mutant | -9/Materials Mutant | -9/Mines Mutant | -8/Materials Sprinter | -7/Factory Sprinter | -7/Lower Caves Mutant | -7/Lower Caves Derelict-Mutant | -7/Data Miner Derelict-Mutant | -6/Proximity Caves Derelict-Mutant | -6/Factory Derelict-Mutant | -5/Factory Mutant | -5/Extension Resources | -11 -10 -9 -9 -8 -7 -7 -7 -7 -6 -6 -5 -5 ----------- Run | Jun Mat Mat Min Mat Fac Low Low Dat Pro Fac Fac Ext Matter Collected 735 | 195 . . . . 71 34 179 . 182 . . 74 Remotely . | . . . . . . . . . . . . . Salvage Created 708 | . . . . . 186 . 208 . 161 . 120 33 Parts 41 | . . . . . 14 . 16 . . . 7 4 Haulers Intercepted 2 | . . . . . 1 . . . . . 1 . Recyclers Shooed . | . . . . . . . . . . . . . Parts Field Recycled . | . . . . . . . . . . . . . Retrieved Matter . | . . . . . . . . . . . . . Parts Self-Destructed 11 | . . . . . . . 11 . . . . . Prevented . | . . . . . . . . . . . . . Kills | -11 -10 -9 -9 -8 -7 -7 -7 -7 -6 -6 -5 -5 ------- Run | Jun Mat Mat Min Mat Fac Low Low Dat Pro Fac Fac Ext Combat Hostiles Destroyed 25 | . . . . . 6 . 10 . 7 . . 2 AOE 25 | . . . . . 6 . 10 . 7 . . 2 Classes Destroyed 5 | . . . . . 3 . . . 1 . 1 . Hauler 2 | . . . . . 1 . . . . . 1 . Watcher 1 | . . . . . . . . . . . 1 . Swarmer 15 | . . . . . 4 . 6 . 3 . . 2 Grunt 9 | . . . . . 2 . 4 . 3 . . . Sentry 1 | . . . . . . . . . 1 . . . Best Kill Streak 10 | . . . . . 6 . 10 . 5 . 2 2 Combat Bots Only 10 | . . . . . 6 . 10 . 5 . . 2 Max Kills in Single Turn 4 | . . . . . 4 . 3 . 2 . 1 2 Gunslinging . | . . . . . . . . . . . . . Exploded 4 | . . . . . 4 . 3 . 2 . . 2 Melee . | . . . . . . . . . . . . . Uniques/NPCs Destroyed . | . . . . . . . . . . . . . Combat | -11 -10 -9 -9 -8 -7 -7 -7 -7 -6 -6 -5 -5 -------- Run | Jun Mat Mat Min Mat Fac Low Low Dat Pro Fac Fac Ext Damage Taken 3027 | . 90 153 . 364 424 101 327 . 170 50 618 730 Core 2032 | . 90 153 . 346 154 49 142 . 44 50 345 659 Absorbed by Shields 37 | . . . . . . . . . . . . 37 Redirected to Shielding 64 | . . . . . . . . . 46 . 18 . Core Remaining (%) 66 | 100 64 . 61 37 . . . . 44 94 . . Volleys Fired 29 | . . . . . 10 1 7 1 7 . 2 1 Largest 2 | . . . . . 2 1 1 1 1 . 1 1 Hottest 80 | . . . . . 80 5 36 5 36 . 36 36 Shots Fired 36 | . . . . . 17 1 7 1 7 . 2 1 Gun 14 | . . . . . 14 . . . . . . . Cannon . | . . . . . . . . . . . . . Launcher 20 | . . . . . 3 . 7 . 7 . 2 1 Special 2 | . . . . . . 1 . 1 . . . . Kinetic . | . . . . . . . . . . . . . Thermal 14 | . . . . . 14 . . . . . . . Explosive 20 | . . . . . 3 . 7 . 7 . 2 1 Electromagnetic . | . . . . . . . . . . . . . Robot Hit Streak 6 | . . . . . 5 6 1 2 3 . 5 . Robot Miss Streak 3 | . . . . . 1 . 3 . . . . 1 Penetration Max . | . . . . . . . . . . . . . Secondary Targets . | . . . . . . . . . . . . . Shots Hit Robots 17 | . . . . . 11 1 1 1 1 . 2 . Core Hits 46 | . . . . . 12 . 12 . 15 . 3 4 Critical Kills . | . . . . . . . . . . . . . Critical Parts Destroyed . | . . . . . . . . . . . . . Critical Strikes . | . . . . . . . . . . . . . Melee Attacks . | . . . . . . . . . . . . . Impact . | . . . . . . . . . . . . . Slashing . | . . . . . . . . . . . . . Piercing . | . . . . . . . . . . . . . Sneak Attacks . | . . . . . . . . . . . . . Combat Hostiles . | . . . . . . . . . . . . . Follow-up Attacks . | . . . . . . . . . . . . . Damage Inflicted 2590 | . . 10 . . 559 . 852 . 809 . 207 153 Guns 142 | . . . . . 142 . . . . . . . Cannons . | . . . . . . . . . . . . . Explosions 2415 | . . . . . 417 . 845 . 809 . 207 137 Melee . | . . . . . . . . . . . . . Ramming 33 | . . 10 . . . . 7 . . . . 16 Kinetic . | . . . . . . . . . . . . . Thermal 291 | . . . . . 142 . 149 . . . . . Explosive 2266 | . . . . . 417 . 696 . 809 . 207 137 Electromagnetic . | . . . . . . . . . . . . . Impact . | . . . . . . . . . . . . . Slashing . | . . . . . . . . . . . . . Piercing . | . . . . . . . . . . . . . Highest Corruption 1 | . . . . . . . . . . . 1 1 Average Corruption 1 | . . . . . . . . . . . 1 1 Corruption Purged . | . . . . . . . . . . . . . Corruption Blocked . | . . . . . . . . . . . . . Effects 1 | . . . . . . . . . . . . 1 Heat Flow Errors 1 | . . . . . . . . . . . . 1 Overload Shots . | . . . . . . . . . . . . . Overflow Damage 145 | . . . . . 37 . 72 . 23 . 1 12 Projectiles . | . . . . . . . . . . . . . Explosions 142 | . . . . . 37 . 69 . 23 . 1 12 Melee 3 | . . . . . . . 3 . . . . . Knockbacks . | . . . . . . . . . . . . . Impact . | . . . . . . . . . . . . . Kinetic . | . . . . . . . . . . . . . Secondary . | . . . . . . . . . . . . . Self-Inflicted Damage 137 | . . 5 . . 25 . 99 . . . . 8 Shots 4 | . . . . . 1 . 3 . . . . . Rammed 6 | . . 1 . . . . 2 . . . . 3 Targets Rammed 6 | . . 1 . . . . 2 . . . . 3 Kicked . | . . . . . . . . . . . . . Crushed . | . . . . . . . . . . . . . Highest Temperature 65 | . . . . 14 24 10 . . 14 . . 65 Average Temperature 15 | . . . . 14 13 10 . . 8 . . 45 Received Heat Transfer 597 | . . 30 . 207 111 54 36 . 42 18 30 69 Siege Activations . | . . . . . . . . . . . . . Robots Corrupted . | . . . . . . . . . . . . . Combat Hostiles . | . . . . . . . . . . . . . Parts Fried . | . . . . . . . . . . . . . Impact Corruptions 1 | . . . . . . . 1 . . . . . Robots Melted . | . . . . . . . . . . . . . Combat Hostiles . | . . . . . . . . . . . . . Parts Melted . | . . . . . . . . . . . . . Heat Transferred 567 | . . . . . 407 . 160 . . . . . Parts Sabotaged . | . . . . . . . . . . . . . Parts Stolen . | . . . . . . . . . . . . . Parts Stripped . | . . . . . . . . . . . . . Power Chain Reactions . | . . . . . . . . . . . . . Missiles Intercepted . | . . . . . . . . . . . . . Alert | -11 -10 -9 -9 -8 -7 -7 -7 -7 -6 -6 -5 -5 ------- Run | Jun Mat Mat Min Mat Fac Low Low Dat Pro Fac Fac Ext Peak Influence 423 | . . 60 23 68 423 . . . . 132 137 296 Initial 117 | . . . 23 8 30 . . . . 117 64 66 Average 119 | . . 33 23 44 162 . . . . 123 105 192 Maximum Alert Level 2 | . . . . . 2 . . . . . . 1 Low Security (%) 84 | 100 100 100 100 100 78 . . . . 100 100 41 Level 1 11 | . . . . . 9 . . . . . . 58 Level 2 4 | . . . . . 11 . . . . . . . Level 3 . | . . . . . . . . . . . . . Level 4 . | . . . . . . . . . . . . . Level 5 . | . . . . . . . . . . . . . High Security . | . . . . . . . . . . . . . Max Security . | . . . . . . . . . . . . . Squads Dispatched 11 | . . 1 . 1 5 . . . . . 1 3 Investigation 4 | . . . . . 3 . . . . . 1 . Extermination . | . . . . . . . . . . . . . Reinforcement 6 | . . 1 . 1 1 . . . . . . 3 Assault . | . . . . . . . . . . . . . Garrison 1 | . . . . . 1 . . . . . . . Intercept . | . . . . . . . . . . . . . Searches Triggered . | . . . . . . . . . . . . . Construction Impeded 1 | . . . . . . . . . . . . 1 Haulers Reinforced . | . . . . . . . . . . . . . Active Scanning Responses . | . . . . . . . . . . . . . Cargo Convoy Interrupts . | . . . . . . . . . . . . . Stealth | -11 -10 -9 -9 -8 -7 -7 -7 -7 -6 -6 -5 -5 --------- Run | Jun Mat Mat Min Mat Fac Low Low Dat Pro Fac Fac Ext Distress Signals 2 | . . . . . . . . . . . . 2 Communications Jammed . | . . . . . . . . . . . . . Distress Signals . | . . . . . . . . . . . . . Times Spotted 105 | . 3 6 . 16 19 14 13 . 8 1 6 19 Peak Tracking Total 15 | . 3 5 . 13 7 15 5 . 5 1 3 10 Tactical Retreats 8 | . . . . . 4 1 . . . . 1 2 Traps | -11 -10 -9 -9 -8 -7 -7 -7 -7 -6 -6 -5 -5 ------- Run | Jun Mat Mat Min Mat Fac Low Low Dat Pro Fac Fac Ext Traps Triggered 7 | . . . . 1 2 . . . . . 2 2 Indirectly . | . . . . . . . . . . . . . Trap Hack Attempts . | . . . . . . . . . . . . . Triggered . | . . . . . . . . . . . . . Disarmed . | . . . . . . . . . . . . . Reprogrammed . | . . . . . . . . . . . . . Reused . | . . . . . . . . . . . . . Traps Extracted . | . . . . . . . . . . . . . Installed . | . . . . . . . . . . . . . Triggered . | . . . . . . . . . . . . . Machines | -11 -10 -9 -9 -8 -7 -7 -7 -7 -6 -6 -5 -5 ---------- Run | Jun Mat Mat Min Mat Fac Low Low Dat Pro Fac Fac Ext Machines Disabled 4 | . . . . . . . 4 . . . . . Max in Single Turn 4 | . . . . . . . 4 . . . . . Energy Cycler 2 | . . . . . . . . . . . . 2 Machines Repaired . | . . . . . . . . . . . . . Machines Sabotaged . | . . . . . . . . . . . . . Overloaded Fab Kills . | . . . . . . . . . . . . . Hacking | -11 -10 -9 -9 -8 -7 -7 -7 -7 -6 -6 -5 -5 --------- Run | Jun Mat Mat Min Mat Fac Low Low Dat Pro Fac Fac Ext Machines Accessed 10 | . . . . . 5 . . 3 . . 2 . Terminals 3 | . . . . . 1 . . . . . 2 . Fabricators 2 | . . . . . 2 . . . . . . . Repair Stations 1 | . . . . . 1 . . . . . . . Recycling Units . | . . . . . . . . . . . . . Scanalyzers . | . . . . . . . . . . . . . Garrison Access 1 | . . . . . 1 . . . . . . . Total Hacks 37 | . . . . . 13 . . 21 . . 3 . Successful 27 | . . . . . 5 . . 21 . . 1 . Failed 10 | . . . . . 8 . . . . . 2 . Catastrophic 4 | . . . . . 3 . . . . . 1 . Database Lockouts . | . . . . . . . . . . . . . Manual 12 | . 4 . . . 8 . . . . . . . Terminals 8 | . . . . . 5 . . . . . 3 . Fabricators 4 | . . . . . 4 . . . . . . . Repair Stations 2 | . . . . . 2 . . . . . . . Recycling Units . | . . . . . . . . . . . . . Scanalyzers . | . . . . . . . . . . . . . Garrison Access 2 | . . . . . 2 . . . . . . . Terminal Hacks 23 | . . . . . 1 . . 21 . . 1 . Record 2 | . . . . . . . . 2 . . . . Part Schematic 11 | . . . . . . . . 11 . . . . Robot Schematic 5 | . . . . . . . . 5 . . . . Prototype ID Bank 3 | . . . . . . . . 3 . . . . Open Door 1 | . . . . . . . . . . . 1 . Branch Access Points 1 | . . . . . 1 . . . . . . . Fabricator Hacks 2 | . . . . . 2 . . . . . . . Network Status 1 | . . . . . 1 . . . . . . . Build 1 | . . . . . 1 . . . . . . . Repair Station Hacks 1 | . . . . . 1 . . . . . . . Refit 1 | . . . . . 1 . . . . . . . Recycling Unit Hacks . | . . . . . . . . . . . . . Scanalyzer . | . . . . . . . . . . . . . Garrison Access Hacks . | . . . . . . . . . . . . . Unauthorized Hacks 1 | . . . . . 1 . . . . . . . Terminals . | . . . . . . . . . . . . . Fabricators 1 | . . . . . 1 . . . . . . . Liberate 1 | . . . . . 1 . . . . . . . Repair Stations . | . . . . . . . . . . . . . Recycling Units . | . . . . . . . . . . . . . Scanalyzers . | . . . . . . . . . . . . . Garrison Access . | . . . . . . . . . . . . . Data Cores Recovered . | . . . . . . . . . . . . . Used . | . . . . . . . . . . . . . Hacking Detections 7 | . 1 . . . 4 . . . . . 2 . Full Trace Events 4 | . . . . . 3 . . . . . 1 . Feedback Events . | . . . . . . . . . . . . . Feedback Blocked . | . . . . . . . . . . . . . Robot Schematics Acquired 5 | . . . . . . . . 5 . . . . Robots Built 2 | . . . . . 2 . . . . . . . Authchips . | . . . . . . . . . . . . . Time 116 | . . . . . 116 . . . . . . . Total Robot Build Rating 6 | . . . . . 6 . . . . . . . Part Schematics Acquired 11 | . . . . . . . . 11 . . . . Parts Built . | . . . . . . . . . . . . . Authchips . | . . . . . . . . . . . . . Time . | . . . . . . . . . . . . . Total Part Build Rating . | . . . . . . . . . . . . . Parts Repaired . | . . . . . . . . . . . . . Time . | . . . . . . . . . . . . . Parts Recycled . | . . . . . . . . . . . . . Recycled Matter . | . . . . . . . . . . . . . Retrieved Matter . | . . . . . . . . . . . . . Retrieved Components . | . . . . . . . . . . . . . Parts Scanalyzed . | . . . . . . . . . . . . . Part Schematics Acquired . | . . . . . . . . . . . . . Parts Damaged . | . . . . . . . . . . . . . Bothacking | -11 -10 -9 -9 -8 -7 -7 -7 -7 -6 -6 -5 -5 ------------ Run | Jun Mat Mat Min Mat Fac Low Low Dat Pro Fac Fac Ext Used RIF Installer . | . . . . . . . . . . . . . Robots Hacked 2 | . . . . . . 1 . 1 . . . . Non-combat 1 | . . . . . . 1 . . . . . . Combat 1 | . . . . . . . . 1 . . . . Robot Hacks Applied 2 | . . . . . . 1 . 1 . . . . parse_system 2 | . . . . . . 1 . 1 . . . . Relay Couplers Released . | . . . . . . . . . . . . . Fabnet Peak Effective % . | . . . . . . . . . . . . . Robots Rewired . | . . . . . . . . . . . . . Allies Hacked . | . . . . . . . . . . . . . Hacks Repelled . | . . . . . . . . . . . . . Allies | -11 -10 -9 -9 -8 -7 -7 -7 -7 -6 -6 -5 -5 -------- Run | Jun Mat Mat Min Mat Fac Low Low Dat Pro Fac Fac Ext Total Allies 8 | . . . . . 2 . . . 1 . . 5 Largest Group 3 | . . . . . 2 . . . 1 . . 3 Highest-Rated Group 98 | . . . . . 42 . . . 96 . . 98 Highest-Rated Ally 96 | . . . . . 21 . . . 96 . . 39 Total Orders . | . . . . . . . . . . . . . Ally Attacks 28 | . . . . . 7 . . . 6 . . 15 Total Damage 576 | . . . . . 172 . . . 189 . . 215 Kills 8 | . . . . . 2 . . . 1 . . 5 Allies Corrupted . | . . . . . . . . . . . . . Allies Melted . | . . . . . . . . . . . . . Intel | -11 -10 -9 -9 -8 -7 -7 -7 -7 -6 -6 -5 -5 ------- Run | Jun Mat Mat Min Mat Fac Low Low Dat Pro Fac Fac Ext Robot Analysis Total . | . . . . . . . . . . . . . Derelict Logs Recovered 2 | . . . . . . . . . 2 . . . Drone Launches . | . . . . . . . . . . . . . Drone Recoveries . | . . . . . . . . . . . . . Exploration | -11 -10 -9 -9 -8 -7 -7 -7 -7 -6 -6 -5 -5 ------------- Run | Jun Mat Mat Min Mat Fac Low Low Dat Pro Fac Fac Ext Turns Passed 1325 | 12 39 37 26 95 319 114 151 47 125 17 226 117 Spaces Moved 2788 | 24 78 72 51 181 651 378 252 82 225 44 568 182 Core 990 | 24 78 72 51 167 6 . 241 82 149 . . 120 Treads . | . . . . . . . . . . . . . Legs . | . . . . . . . . . . . . . Wheels . | . . . . . . . . . . . . . Hover 3 | . . . . . . . 3 . . . . . Flight 1795 | . . . . 14 645 378 8 . 76 44 568 62 Fastest Speed 26 | 50 50 50 50 35 26 29 29 50 40 40 37 40 Average Speed 39 | 50 50 50 50 48 29 29 49 54 46 40 37 46 Slowest Speed 100 | 50 50 50 50 50 50 29 60 100 50 40 40 50 Overloaded Moves . | . . . . . . . . . . . . . Propulsion Burnouts . | . . . . . . . . . . . . . Robots Hopped 31 | . . . . 6 11 8 . . . 1 5 . Cave-ins Triggered . | . . . . . . . . . . . . . Exploration Rate (%) 31 | 3 27 12 19 38 24 57 54 69 42 2 21 44 Regions Visited 12 Branch Regions 6 Pre-discovered Areas 2 | . . . . . . . . 1 1 . . . Known Exits Taken 1 | . . . . . 1 . . . . . . . Unknown Exits Taken 11 | 1 1 1 1 1 . 1 1 1 1 1 1 . Scrap Searched 6 | . . . . . . 2 3 . 1 . . . Spaces Dug 14 | . . . . . 14 . . . . . . . Terrain Destroyed 149 | . . . . . 16 . 60 . 43 . 15 15 Melee . | . . . . . . . . . . . . . Projectile . | . . . . . . . . . . . . . AOE 149 | . . . . . 16 . 60 . 43 . 15 15 Terrain Rammed . | . . . . . . . . . . . . . Walls Destroyed . | . . . . . . . . . . . . . Machines Disabled . | . . . . . . . . . . . . . Actions | -11 -10 -9 -9 -8 -7 -7 -7 -7 -6 -6 -5 -5 --------- Run | Jun Mat Mat Min Mat Fac Low Low Dat Pro Fac Fac Ext Total 2941 | 23 77 72 50 181 747 373 269 84 238 42 572 213 Wait 63 | . . . . . 63 . . . . . . . Move 2724 | 23 77 72 50 172 629 364 251 81 224 42 557 182 Hop 22 | . . . . 2 10 5 . . . . 5 . Pick Up 9 | . . . . 5 3 . . . . . 1 . Fast Attach 21 | . . . . . 12 1 4 . 1 . 3 . Attach 18 | . . . . 1 6 1 3 1 2 . 2 2 Detach 12 | . . . . 1 3 1 2 1 2 . 2 . Swap 1 | . . . . . 1 . . . . . . . Drop 12 | . . . . . 10 . . . 2 . . . Fire 29 | . . . . . 10 1 7 1 7 . 2 1 Melee . | . . . . . . . . . . . . . Ram 5 | . . . . . . . 2 . . . . 3 Kick . | . . . . . . . . . . . . . Crush . | . . . . . . . . . . . . . Escape Stasis 25 | . . . . . . . . . . . . 25 Rewire . | . . . . . . . . . . . . . Trap . | . . . . . . . . . . . . . Miscellaneous . | . . . . . . . . . . . . . Route ------- -11/Junkyard -10/Materials -9/Materials -9/Mines -8/Materials -7/Factory (discovered 2 exits: *Low x2) -7/Lower Caves -7/Lower Caves (discovered 2 exits: [*Fac] / *Dat) -7/Data Miner -6/Proximity Caves -6/Factory (discovered 2 exits: *Fac / Low) -5/Factory -5/Extension (discovered 1 exit: [*Fac]) History --------- Turn | Location | Event 3 | -11/Junkyard | Discovered new exit (range 15) 13 | -11/Junkyard | Entered Materials 51 | -10/Materials | Discovered new exit (range 4) 52 | -10/Materials | Entered another Materials area 52 | -9/Materials | Evolved 2 slots: Propulsion x2 85 | -9/Materials | Discovered new exit (range 8) 89 | -9/Materials | Entered Mines 105 | -9/Mines | Discovered new exit (range 10) 115 | -9/Mines | Entered Materials 115 | -8/Materials | Evolved 2 slots: Propulsion x2 193 | -8/Materials | Core integrity fell below 50% 199 | -8/Materials | Discovered new exit (range 15) 210 | -8/Materials | Entered Factory 210 | -7/Factory | Evolved 2 slots: Utility x2 344 | -7/Factory | Fabricated H-55 Commando? 349 | -7/Factory | Garrison activated, responded to threat 448 | -7/Factory | Lost 3 parts (1p2n) 492 | -7/Factory | Identified exit to Lower Caves 529 | -7/Factory | Entered Lower Caves 607 | -7/Lower Caves | Attacked by a faux Warlord 637 | -7/Lower Caves | Discovered new exit (range 8) 643 | -7/Lower Caves | Entered another Lower Caves area 659 | -7/Lower Caves | Discovered new exit (range 14) 665 | -7/Lower Caves | Attracted the attention of an 0b10 base 688 | -7/Lower Caves | Destroyed 10 combat bots 695 | -7/Lower Caves | Lost 5 parts (3n1u1w) 788 | -7/Lower Caves | Discovered new exit (range 13) 794 | -7/Lower Caves | Entered Data Miner 794 | -7/Data Miner | Discovered new exit (range 7) 804 | -7/Data Miner | Met Data Miner 814 | -7/Data Miner | Learned location of Section 7 (-2) 814 | -7/Data Miner | Acquired the access code to Warlord's prototype stash 822 | -7/Data Miner | Received God Mode back door access code from Data Miner 841 | -7/Data Miner | Entered Proximity Caves 843 | -6/Proximity Caves | Core integrity fell below 50% 848 | -6/Proximity Caves | Attracted the attention of an 0b10 checkpoint 922 | -6/Proximity Caves | Escorted by Enhanced Grunt 962 | -6/Proximity Caves | Learned 4 Factory zone layouts 963 | -6/Proximity Caves | Discovered new exit (range 3) 966 | -6/Proximity Caves | Entered Factory 966 | -6/Factory | Evolved 2 slots: Utility x2 967 | -6/Factory | Identified exit to Lower Caves 975 | -6/Factory | Discovered new exit (range 15) 983 | -6/Factory | Entered another Factory area 983 | -5/Factory | Evolved 2 slots: Utility x2 1078 | -5/Factory | Build established: Derelict-Mutant 1158 | -5/Factory | Spotted B-75 Beast 1206 | -5/Factory | Discovered new exit (range 10) 1209 | -5/Factory | Entered Extension 1214 | -5/Extension | Lost 3 parts (1n2u) 1239 | -5/Extension | Core integrity fell below 50% 1251 | -5/Extension | Rescued a captive Derelict 1274 | -5/Extension | Lost 3 parts (1n1u1w) 1280 | -5/Extension | Rescued a captive Derelict 1281 | -5/Extension | Rescued a captive Derelict 1287 | -5/Extension | Energy Cycler disabled 1287 | -5/Extension | Rescued a captive Derelict 1288 | -5/Extension | Rescued a captive Derelict 1288 | -5/Extension | Rescued a captive Derelict 1289 | -5/Extension | Rescued a captive Derelict 1289 | -5/Extension | Rescued a captive Derelict 1290 | -5/Extension | Rescued a captive Derelict 1291 | -5/Extension | Rescued a captive Derelict 1292 | -5/Extension | Rescued a captive Derelict 1312 | -5/Extension | Spotted B-75 Beast 1314 | -5/Extension | Spotted B-75 Beast 1316 | -5/Extension | Discovered new exit (range 16) 1318 | -5/Extension | Core integrity fell below 20% 1326 | -5/Extension | Destroyed by B-75 Beast with Magnetic Acceleration Cannon Last Messages --------------- 01307_ Field strength at 34. 01308_ Slug penetrates 2L-QST(b). 01308_ Field strength at 23. 01309_ Field strength at 17. 01310_ Machine disabled. 01310_ U2-8RX(h) destroyed. 01310_ Field strength at 11. 01311_ Slug penetrates 2L-QST(b). 01311_ R-10 Processor collects Flexi-carbon Leg. 01311_ Stasis field depleted. 01313_ Acquired 74 matter. 01314_ Core Analyzer destroyed. 01314_ Slammed into Y-64 Sentinel. 01314_ 2L-QST(b) destroyed. 01316_ EXIT=FOUND 01318_ ALERT: Hostiles spotted, dispatching reinforcements to Terminal E005. 01320_ Penetrated by Slug. 01320_ Machine disabled. 01323_ Slammed into W-25 Informer. Map ----- +----------------------------------------------------+ | | | | | | | ?????????????????????????????????????????????????? | | ?????????????????????????????????????????????????? | | ?????????????????????????????????????????????????? | | #####???########?????????????????????????????????? | | #???# """ ####??????????????????????????????? | | #???# "Y" """#??????????????????????????????? | | ##### T"#??????????????????????????????? | | + ""????????????????????????????????? | | #??# !]#?????????????????????????????????? | | #???! ]???????????????????????????????????? | | ######+####???????????####+###??????????????? | | =%* #??????????? ????????????? | | ! %#### #????????? ????????????? | | #??# #?????????"" ?????????????? | | #??# #????????#"T ??????????????? | | #??# #????????#"" ???????????????? | | #??# #????????# ! #????????????????? | | #??# #????????# #????????????????? | | ####??# #????????# #????????????????? | | ########?????# #????????# ?????????????????? | | ?????????????# #????????#% ???????????????????? | | ?????????????# #????????#uw ?????????????????????? | | ?????????????# #????????#@#??????????????????????? | | ???????????### #????????# #??????????????????????? | | ?????????###T# #????????# #??????????????????????? | | ?????????# =#????????# #??????????????????????? | | ?????????# #=#????????# #??????????????????????? | | ?????????### #*#????????# #??????????????????????? | | ???????????#?#!#????????# #??????????????????????? | | ?????????????#!#????????# #??????????????????????? | | ?????????????#%########## ###????????????????????? | | ???????????###!##" "# "## #"#????????????????????? | | ???????????#""% " " #????????????????????? | | ???????????# "%]! " #????????????????????? | | ???????????# ! #????????????????????? | | ???????????# #????????????????????? | | ???????????# #????????????????????? | | ????????? ??????????????????? | | ??????? ????????????????? | | ?????? ???????????????? | | ????? ?????????????? | | ????? ????????????? | | ????######## #########????????????? | | ???????????# #????????????????????? | | ???????????# #????????????????????? | | ???????????# #????????????????????? | | ???????????# #????????????????????? | +----------------------------------------------------+ Best States ------------- Heat Dissipation 40 Energy Generation 14 Energy Capacity 160 Matter Stores 300 Matter Capacity 300 Sight Range 16 Robot Scan Range 15 Terrain Scan Density 10 Armor Coverage 225 Propulsion Shielding 66 Evasion (%) 64 Melee Accuracy 5 Core Analysis 6 Offensive Hacking 10 Item Schematics ----------------- Combat Drone Bay | -7/Data Miner | Free Lgt. Regenerative Plating | -7/Data Miner | Free Cld. Cesium-ion Thruster | -7/Data Miner | Free Thermal Defense Suite | -7/Data Miner | Free Prc. Rocket Launcher | -7/Data Miner | Free Antigrav System | -7/Data Miner | Free Imp. Thermal Shield | -7/Data Miner | Free Imp. Remote Datajack | -7/Data Miner | Free KE Penetrator | -7/Data Miner | Free Adv. Salvage Targeting Computer | -7/Data Miner | Free Myomer Leg | -7/Data Miner | Free Robot Schematics ------------------ R-10 Processor | -7/Data Miner | Free E-15 Imp | -7/Data Miner | Free M-28 Smith | -7/Data Miner | Free G-50 Soldier | -7/Data Miner | Free S-27 Virus | -7/Data Miner | Free Fabricated ------------ H-55 Commando | x2 | -7/Factory | Preloaded Alien Tech Used ----------------- None Achievements -------------- None Challenges ------------ None Game ------ Seed TransportPointyMicrothruster Manual? 0 Play Time 00:28:50 Cumulative 230.6 hours Start 2023.05.21 @ 00:38:27 End 2023.05.21 @ 01:06:40 Sessions 1 Manual Loads 0 Difficulty Rogue Special Mode None Game No. 701 Rogue 701 Adventurer 0 Explorer 0 Win Type - Total 10 Types 8/0/1/1/0/0/0/0/0 Lore% 83 Gallery% 82 Achievement% 72 Wizard Run 0 Options --------- ASCII 0 Keyboard 0 Movement Numpad Keybinds 0 Fullscreen 1 Font 16/SmallcapsGlow Map View 75x55 Tactical HUD 1 Map Filters NONE Filters NONE Steam 1 RUN: 728f0759-439b-4112-af26-869b2583023e